Cogmind - Beta 14 @@@ ROGUE MODE // 2024.09.22 @ 12:00:46 Player: Mallow Result: Destroyed by G-47 Trooper with Particle Gun Performance ------------- Evolutions (2) 1000 Regions Visited (5) 1000 Robots Destroyed (34) 170 Value Destroyed (1002) 1002 Prototype IDs (23) 460 Alien Tech Used (0) 0 Bonus (300) 300 TOTAL SCORE: 3932 Bonus ------- Aligned with FarCom 300 Cogmind --------- Core Integrity 0/550 Matter 179/300 Energy 9/100 System Corruption 0% Temperature Cool (18) Movement Core (250) Ox4 Location -8/Materials Parts ------- > --- POWER (1) -------- (None) > --- PROPULSION (4) --- (None) > --- UTILITY (4) ------ Medium Storage Unit Armor Integrity Analyzer Microactuators > --- WEAPON (2) ------- Heavy Mace > --- INVENTORY (10) --- Medium Storage Unit Advanced Weight Redist. System Structural Scanner Structural Scanner Transmission Jammer Transmission Jammer Peak State ------------ > --- POWER ------------ Improved Ion Engine > --- PROPULSION ------- Aluminum Leg Makeshift Leg Makeshift Leg Improved Hover Unit > --- UTILITY ---------- Medium Storage Unit Transport Network Coupler Cloak of Protection Hacking Suite > --- WEAPON ----------- Shock Rifle Bore Cannon > --- INVENTORY -------- Ion Engine Cesium-ion Thruster Medium Storage Unit Medium Matter Pod Advanced Weight Redist. System Structural Scanner Structural Scanner Advanced Targeting Computer [Rating: 35] Favorites ----------- Power Ion Engine Engine Ion Engine Power Core Light Nuclear Core Propulsion Makeshift Leg Treads Light Treads Leg Makeshift Leg Hover Unit Improved Hover Unit Flight Unit Cesium-ion Thruster Utility Small Storage Unit Device Cloak of Protection Storage Small Storage Unit Processor Transport Network Coupler Hackware Hacking Suite Protection Backup Plating I Weapon Assault Rifle Energy Gun Particle Gun Ballistic Gun Assault Rifle Ballistic Cannon Bore Cannon Special Weapon Mining Laser Impact Weapon Heavy Mace Build | -11 -10 -10 -10 -9 -8 ------- Run | Yrd Mat Min Exi Min Mat Slots Evolved 4 | . . . . . 4 Power . | . . . . . . Propulsion 2 | . . . . . 2 Utility 2 | . . . . . 2 Weapon . | . . . . . . Parts Attached 62 | 6 5 3 2 13 33 Power 9 | 1 3 . 1 1 3 Engine 8 | 1 3 . 1 1 2 Core 1 | . . . . . 1 Reactor . | . . . . . . Propulsion 20 | 2 . 1 . 4 13 Treads 2 | 2 . . . . . Leg 16 | . . 1 . 4 11 Wheel . | . . . . . . Hover 1 | . . . . . 1 Flight 1 | . . . . . 1 Utility 19 | 1 . . 1 3 14 Device 11 | . . . 1 2 8 Storage 3 | 1 . . . 1 1 Processor 4 | . . . . . 4 Hackware 1 | . . . . . 1 Protection . | . . . . . . Artifact . | . . . . . . Weapon 14 | 2 2 2 . 5 3 Energy Gun 4 | . . . . 2 2 Energy Cannon . | . . . . . . Ballistic Gun 7 | 2 2 2 . 1 . Ballistic Cannon 1 | . . . . 1 . Launcher . | . . . . . . Special Weapon 1 | . . . . 1 . Impact Weapon 1 | . . . . . 1 Slashing Weapon . | . . . . . . Piercing Weapon . | . . . . . . Special Melee Weapon . | . . . . . . Unidentified Prototypes . | . . . . . . Corrupted Parts 1 | . . . . 1 . System Corruption 2 | . . . . 2 . Parts Lost 27 | . 4 6 . 2 15 Power 6 | . 2 1 . 1 2 Propulsion 11 | . 1 2 . . 8 Utility 3 | . . 1 . . 2 Weapon 7 | . 1 2 . 1 3 Highest Loss Streak 9 | . 2 6 . 2 9 To Critical Strikes . | . . . . . . Average Slot Usage (%) 88 | . 84 62 77 98 90 Engine 10 | . 13 3 14 13 7 Treads 5 | . 23 4 . . . Leg 19 | . . 8 14 27 27 Hover 1 | . 2 2 . . 1 Device 8 | . . . 6 13 10 Storage 12 | . 14 14 14 14 9 Processor 3 | . . . . . 10 Hackware 1 | . . . . . 5 Energy Gun 6 | . . . . 13 6 Ballistic Gun 12 | . 27 27 28 7 . Ballistic Cannon 3 | . . . . 4 7 Peak Build Rating 35 | 6 7 7 13 26 35 Average Rating 17 | 4 5 4 8 22 26 On Entrance 9 | . 6 7 4 13 26 Naked Turns . | . . . . . . Heaviest Build 30 | 12 15 15 20 30 30 Greatest Support 60 | 40 40 20 10 40 60 Greatest Overweight (x) 2 | . . 2 1 1 2 Average Overweight (x) . | . . . 1 . . Largest Inventory Capacity 10 | 8 8 8 8 8 10 Average Capacity 8 | 6 8 8 8 8 9 Most Carried 10 | 2 8 7 5 8 10 Average Carried 6 | 1 5 5 5 7 8 Final Capacity 10 | 8 8 8 8 8 10 Final Carried 8 | 2 7 6 5 8 6 Class Distribution -------------------- 40% | Mutant 36% | Scavenger-Mutant 22% | Scavenger-Skirmisher Dominant Class ---------------- Mutant | -10/Materials Mutant | -10/Mines Mutant | -10/Exiles Scavenger-Mutant | -9/Mines Scavenger-Skirmisher | -8/Materials Resources | -11 -10 -10 -10 -9 -8 ----------- Run | Yrd Mat Min Exi Min Mat Matter Collected 1525 | 231 408 94 . 341 451 Remotely . | . . . . . . Salvage Created 1369 | . 519 94 . 238 518 Parts 68 | . 23 7 . 8 30 Haulers Intercepted 3 | . 2 . . . 1 Recyclers Shooed 2 | . 1 1 . . . Parts Field Recycled . | . . . . . . Retrieved Matter . | . . . . . . Parts Self-Destructed . | . . . . . . Prevented . | . . . . . . Kills | -11 -10 -10 -10 -9 -8 ------- Run | Yrd Mat Min Exi Min Mat Combat Hostiles Destroyed 28 | . 8 2 . 4 14 Guns 19 | . 8 2 . 4 5 Cannons 9 | . . . . . 9 Classes Destroyed 9 | . 4 . . 1 4 Worker 1 | . . . . . 1 Hauler 3 | . 2 . . . 1 Recycler 2 | . 1 . . 1 . Watcher 1 | . 1 . . . . Swarmer 7 | . . . . . 7 Grunt 17 | . 8 2 . 3 4 Sentry 2 | . . . . . 2 Hunter 1 | . . . . . 1 Assembled 1 | . . . . 1 . Best Kill Streak 5 | . 2 2 . 2 5 Combat Bots Only 5 | . 2 2 . 2 5 Max Kills in Single Turn 2 | . 1 1 . 1 2 Gunslinging . | . . . . . . Exploded . | . . . . . . Melee . | . . . . . . Uniques/NPCs Destroyed . | . . . . . . Combat | -11 -10 -10 -10 -9 -8 -------- Run | Yrd Mat Min Exi Min Mat Hostile Shots Fired 337 | . 82 28 . 43 184 Missed 78 | . 15 4 . 11 48 Damage Taken 3648 | . 827 316 . 443 2062 Core 728 | . 139 . . 32 557 Absorbed by Shields . | . . . . . . Regen/Repaired (Parts) 27 | . . . . . 27 Core Remaining (%) 65 | 100 . . . 31 . Volleys Fired 162 | . 61 15 . 20 66 Largest 2 | . 2 2 . 2 2 Hottest 122 | . 40 40 . 100 122 Shots Fired 275 | . 121 30 . 34 90 Gun 223 | . 121 30 . 31 41 Cannon 49 | . . . . . 49 Launcher . | . . . . . . Special 3 | . . . . 3 . Kinetic 229 | . 121 30 . 29 49 Thermal 23 | . . . . 5 18 Explosive . | . . . . . . Electromagnetic 23 | . . . . . 23 Robot Hit Streak 12 | . 12 7 . 3 6 Robot Miss Streak 5 | . 4 1 . 4 5 Penetration Max 1 | . . . . . 1 Secondary Targets 2 | . 1 1 . . . Max Gunslinging Chain 1 | . 1 1 . . . Shots Hit Robots 158 | . 71 22 . 15 50 Core Hits 66 | . 28 5 . 10 23 Critical Kills 6 | . . . . . 6 Critical Parts Destroyed 8 | . . . . . 8 Critical Strikes 16 | . . . . . 16 Destroy 14 | . . . . . 14 Corrupt 1 | . . . . . 1 Smash 1 | . . . . . 1 Melee Attacks 6 | . . . . . 6 Impact 6 | . . . . . 6 Slashing . | . . . . . . Piercing . | . . . . . . Sneak Attacks . | . . . . . . Combat Hostiles . | . . . . . . Follow-up Attacks . | . . . . . . Damage Inflicted 2524 | . 970 275 . 193 1086 Guns 1831 | . 954 275 . 181 421 Cannons 469 | . . . . . 469 Explosions 56 | . . . . . 56 Melee 129 | . . . . . 129 Ramming 39 | . 16 . . 12 11 Kinetic 1879 | . 954 275 . 181 469 Thermal 206 | . . . . . 206 Explosive 56 | . . . . . 56 Electromagnetic 215 | . . . . . 215 Impact 129 | . . . . . 129 Slashing . | . . . . . . Piercing . | . . . . . . Highest Corruption 2 | . . . . 2 . Average Corruption 2 | . . . . 2 . Corruption Purged . | . . . . . . Corruption Blocked . | . . . . . . Effects 6 | . . . . 6 . Matter Fused 3 | . . . . 3 . Heat Flow Errors 1 | . . . . 1 . Energy Discharges 1 | . . . . 1 . Data Loss (minor) 1 | . . . . 1 . Overload Shots . | . . . . . . Overflow Damage 32 | . . . . . 32 Projectiles . | . . . . . . Explosions 14 | . . . . . 14 Melee 18 | . . . . . 18 Knockbacks 6 | . . . . . 6 Impact . | . . . . . . Kinetic 5 | . . . . . 5 Secondary 1 | . . . . . 1 Self-Inflicted Damage 95 | . . . . . 95 Shots 1 | . . . . . 1 Rammed 5 | . 5 . . . . Targets Rammed 13 | . 5 . . 1 7 Kicked 8 | . . . . 1 7 Crushed . | . . . . . . Highest Temperature 270 | . 8 16 . 255 270 Average Temperature 52 | . 3 7 . 44 63 Received Heat Transfer 1889 | . 468 177 . 281 963 Siege Activations . | . . . . . . Robots Corrupted . | . . . . . . Combat Hostiles . | . . . . . . Parts Fried 1 | . . . . . 1 Impact Corruptions 1 | . . . . . 1 Robots Melted . | . . . . . . Combat Hostiles . | . . . . . . Parts Melted . | . . . . . . Heat Transferred 518 | . . . . . 518 Parts Sabotaged . | . . . . . . Parts Stolen . | . . . . . . Parts Stripped . | . . . . . . Power Chain Reactions . | . . . . . . Alert | -11 -10 -10 -10 -9 -8 ------- Run | Yrd Mat Min Exi Min Mat Peak Influence 245 | . 177 40 . 81 245 Initial 5 | . . 5 . . . Average 62 | . 46 29 . 27 108 Maximum Alert Level 1 | . . . . . 1 Low Security (%) 96 | 100 100 100 . 100 90 Level 1 3 | . . . . . 9 Level 2 . | . . . . . . Level 3 . | . . . . . . Level 4 . | . . . . . . Level 5 . | . . . . . . High Security . | . . . . . . Max Security . | . . . . . . Squads Dispatched 4 | . 1 . . . 3 Investigation 1 | . . . . . 1 Extermination . | . . . . . . Reinforcement 3 | . 1 . . . 2 Assault . | . . . . . . Garrison . | . . . . . . Intercept . | . . . . . . Searches Triggered . | . . . . . . Construction Impeded 1 | . . . . . 1 Haulers Reinforced . | . . . . . . Active Scanning Responses . | . . . . . . Cargo Convoy Interrupts . | . . . . . . Stealth | -11 -10 -10 -10 -9 -8 --------- Run | Yrd Mat Min Exi Min Mat Distress Signals 7 | . 3 . . 1 3 Communications Jammed . | . . . . . . Distress Signals . | . . . . . . Times Spotted 52 | . 20 2 . 4 26 Peak Tracking Total 5 | . 5 2 . 3 5 Tactical Retreats 1 | . . . . . 1 Traps | -11 -10 -10 -10 -9 -8 ------- Run | Yrd Mat Min Exi Min Mat Traps Triggered . | . . . . . . Indirectly . | . . . . . . Trap Hack Attempts . | . . . . . . Triggered . | . . . . . . Disarmed . | . . . . . . Reprogrammed . | . . . . . . Reused . | . . . . . . Traps Extracted . | . . . . . . Installed . | . . . . . . Triggered . | . . . . . . Machines | -11 -10 -10 -10 -9 -8 ---------- Run | Yrd Mat Min Exi Min Mat Machines Disabled 7 | . . . . 1 6 Max in Single Turn 1 | . . . . 1 1 Machines Repaired . | . . . . . . Machines Dismantled . | . . . . . . Machines Sabotaged . | . . . . . . Overloaded Fab Kills . | . . . . . . Hacking | -11 -10 -10 -10 -9 -8 --------- Run | Yrd Mat Min Exi Min Mat Machines Accessed 8 | . 3 . 1 . 4 Terminals 4 | . 1 . . . 3 Fabricators . | . . . . . . Repair Stations 2 | . 1 . . . 1 Recycling Units 1 | . 1 . . . . Scanalyzers . | . . . . . . Garrison Access . | . . . . . . Total Hacks 18 | . 6 . 1 . 11 Successful 9 | . 3 . 1 . 5 Failed 9 | . 3 . . . 6 Catastrophic 2 | . 2 . . . . Database Lockouts . | . . . . . . Manual 1 | . . . 1 . . Terminals 11 | . 2 . . . 9 Fabricators . | . . . . . . Repair Stations 4 | . 2 . . . 2 Recycling Units 2 | . 2 . . . . Scanalyzers . | . . . . . . Garrison Access . | . . . . . . Terminal Hacks 4 | . . . 1 . 3 Robot Analysis 1 | . . . . . 1 Dispatch Records 1 | . . . . . 1 Transport Status 1 | . . . . . 1 Derelict Proto ID Bank 1 | . . . 1 . . Fabricator Hacks . | . . . . . . Repair Station Hacks 3 | . 1 . . . 2 Scan Component 1 | . . . . . 1 Repair 1 | . . . . . 1 Refit 1 | . 1 . . . . Recycling Unit Hacks 2 | . 2 . . . . Retrieve Components 2 | . 2 . . . . Scanalyzer . | . . . . . . Garrison Access Hacks . | . . . . . . Unauthorized Hacks . | . . . . . . Terminals . | . . . . . . Fabricators . | . . . . . . Repair Stations . | . . . . . . Recycling Units . | . . . . . . Scanalyzers . | . . . . . . Garrison Access . | . . . . . . Data Cores Recovered . | . . . . . . Used . | . . . . . . Hacking Detections 6 | . 2 . . . 4 Full Trace Events 2 | . 1 . . . 1 Feedback Events . | . . . . . . Feedback Blocked . | . . . . . . Robot Schematics Acquired . | . . . . . . Robots Built . | . . . . . . Authchips . | . . . . . . Time . | . . . . . . Total Robot Build Rating . | . . . . . . Part Schematics Acquired . | . . . . . . Parts Built . | . . . . . . Authchips . | . . . . . . Time . | . . . . . . Total Part Build Rating . | . . . . . . Parts Repaired 1 | . . . . . 1 Time 26 | . . . . . 26 Parts Recycled . | . . . . . . Recycled Matter . | . . . . . . Retrieved Matter . | . . . . . . Retrieved Components 4 | . 4 . . . . Parts Scanalyzed . | . . . . . . Part Schematics Acquired . | . . . . . . Parts Damaged . | . . . . . . Bothacking | -11 -10 -10 -10 -9 -8 ------------ Run | Yrd Mat Min Exi Min Mat Used RIF Installer . | . . . . . . Robots Hacked . | . . . . . . Non-combat . | . . . . . . Combat . | . . . . . . Robot Hacks Applied . | . . . . . . Relay Couplers Released . | . . . . . . Fabnet Peak Effective % . | . . . . . . Robots Rewired . | . . . . . . Allies Hacked . | . . . . . . Hacks Repelled . | . . . . . . Allies | -11 -10 -10 -10 -9 -8 -------- Run | Yrd Mat Min Exi Min Mat Total Allies 1 | . . 1 . . . Largest Group 1 | . . 1 1 . . Highest-Rated Group 31 | . . 31 31 . . Highest-Rated Ally 31 | . . 31 31 . . Total Orders . | . . . . . . Ally Attacks . | . . . . . . Total Damage . | . . . . . . Kills . | . . . . . . Allies Corrupted . | . . . . . . Allies Melted . | . . . . . . Intel | -11 -10 -10 -10 -9 -8 ------- Run | Yrd Mat Min Exi Min Mat Robot Analysis Total 1 | . . . . . 1 Derelict Logs Recovered 2 | . . 1 . 1 . Drone Launches . | . . . . . . Drone Recoveries . | . . . . . . Exploration | -11 -10 -10 -10 -9 -8 ------------- Run | Yrd Mat Min Exi Min Mat Turns Passed 4057 | 91 868 173 417 1129 1379 Spaces Moved 2050 | 52 405 91 219 621 662 Core 9 | 2 . 7 . . . Treads 462 | 50 405 7 . . . Legs 1579 | . . 77 219 621 662 Wheels . | . . . . . . Hover . | . . . . . . Flight . | . . . . . . Fastest Speed 50 | 50 160 120 190 130 120 Average Speed 146 | 155 160 125 190 140 131 Slowest Speed 260 | 160 160 160 190 190 260 Overloaded Moves . | . . . . . . Propulsion Burnouts . | . . . . . . Robots Hopped . | . . . . . . Cave-ins Triggered . | . . . . . . Exploration Rate (%) 43 | 4 63 19 60 69 43 Regions Visited 5 Branch Regions 3 Pre-discovered Areas . | . . . . . . Known Exits Taken . | . . . . . . Unknown Exits Taken 5 | 1 1 1 1 1 . Scrap Searched 1 | . . . . 1 . Spaces Dug 3 | . . . . 3 . Terrain Destroyed 51 | . . . . 3 48 Melee . | . . . . . . Projectile 28 | . . . . 3 25 AOE 23 | . . . . . 23 Terrain Rammed . | . . . . . . Walls Destroyed . | . . . . . . Machines Disabled . | . . . . . . Actions | -11 -10 -10 -10 -9 -8 --------- Run | Yrd Mat Min Exi Min Mat Total 2808 | 59 500 119 220 838 1072 Wait 466 | . 20 10 . 174 262 Move 2045 | 51 404 90 218 620 662 Hop . | . . . . . . Pick Up 27 | 2 5 1 . 4 15 Fast Attach 25 | 6 1 1 1 7 9 Attach 23 | . 2 2 1 3 15 Detach 8 | . . . . 3 5 Swap 14 | . 2 . . 3 9 Drop 19 | . . . . 3 16 Fire 162 | . 61 15 . 20 66 Melee 6 | . . . . . 6 Ram . | . . . . . . Kick 8 | . . . . 1 7 Crush 5 | . 5 . . . . Escape Stasis . | . . . . . . Rewire . | . . . . . . Trap . | . . . . . . Miscellaneous . | . . . . . . Route ------- -11/Scrapyard -10/Materials (discovered 2 exits: [*Mat] / [*Min]) -10/Mines (discovered 2 exits: [*Mat] / *Exi) -10/Exiles -9/Mines (discovered 2 exits: *Mat x2) -8/Materials History --------- Turn | Location | Event 7 | -11/Scrapyard | Discovered new exit (range 16) 92 | -11/Scrapyard | Entered Materials 302 | -10/Materials | Build established: Mutant 783 | -10/Materials | Discovered new exit (range 12) 892 | -10/Materials | Discovered new exit (range 7) 954 | -10/Materials | Core integrity fell below 50% 960 | -10/Materials | Entered Mines 1044 | -10/Mines | Lost 6 parts (1p2n1u2w) 1048 | -10/Mines | Discovered new exit (range 9) 1068 | -10/Mines | Received a Mining Laser from a helpful Derelict 1116 | -10/Mines | Learned Materials terminal intel 1124 | -10/Mines | Deemed a non-threat by the Exiles lab entrance 1126 | -10/Mines | Discovered new exit (range 5) 1133 | -10/Mines | Entered Exiles 1133 | -10/Exiles | Accompanied by 1 ally 1182 | -10/Exiles | Met 8R-AWN 1214 | -10/Exiles | Met EX-HEX 1269 | -10/Exiles | Met EX-BIN 1300 | -10/Exiles | Aligned with FarCom system 1302 | -10/Exiles | Given EX-Vault access code 1345 | -10/Exiles | Opened EX-Vault 1359 | -10/Exiles | Found Cloak of Protection 1400 | -10/Exiles | Warned to stay clear of 0b10 Research branches 1424 | -10/Exiles | Exiles lab attacked by MAIN.C 1531 | -10/Exiles | Discovered new exit (range 11) 1550 | -10/Exiles | Left Exiles lab with Cloak of Protection 1550 | -10/Exiles | Entered Mines 1577 | -9/Mines | Met a Derelict bent on vengeance 1603 | -9/Mines | Assembled infested the area 1608 | -9/Mines | Assisted by a Guerilla fighting off Assembled 1910 | -9/Mines | Build established: Scavenger-Mutant 1930 | -9/Mines | Found a hidden stash of uninstalled traps 2568 | -9/Mines | Discovered new exit (range 4) 2582 | -9/Mines | Discovered new exit (range 12) 2583 | -9/Mines | Learned Materials trap positions 2679 | -9/Mines | Entered Materials 2679 | -8/Materials | Evolved 4 slots: Propulsion x2, Utility x2 2680 | -8/Materials | Loaded intel: 17 trap records 2681 | -8/Materials | Loaded intel: 12 terminal locations 2953 | -8/Materials | Build established: Scavenger-Skirmisher 3225 | -8/Materials | Repaired Aluminum Leg 3780 | -8/Materials | Lost 4 parts (1p3n) 3867 | -8/Materials | Build established: Scavenger-Mutant 4033 | -8/Materials | Core integrity fell below 50% 4048 | -8/Materials | Core integrity fell below 20% 4058 | -8/Materials | Destroyed by G-47 Trooper with Particle Gun Last Messages --------------- Kicked G-47 Trooper out of the way. Carbon-fiber Leg destroyed. G-50 Soldier heat damages Adv. Heat Sink, Hvy. Laser. Electrolysis Chamber disabled. G-50 Soldier heat damages Hvy. Laser. K-01 Serf collects debris. Kicked K-01 Serf out of the way. Aluminum Leg destroyed. Kicked G-50 Soldier out of the way. Carbon-fiber Leg destroyed. Aluminum Leg destroyed. Acquired Hvy. Mace. Critical hit (Burn: +37). Aluminum Leg destroyed. Discarded Transport Network Coupler. Discarded Hacking Suite. Y-45 Defender suffers critical hit (Smash). Destroyed Hvy. Assault Rifle. Y-45 Defender system corrupted by crushing effect. Cloak of Protection destroyed. Map ----- +----------------------------------------------------+ | ???????????????????????????????? | | ???????????????????????????????? | | ?????????????????????? ????????? | | ???????????????????????????????? | | ????????????? ?????????????????? | | ????????????? ???? ???????????? | | ???????????????????????????????? | | ????????????????? ????? ????? ?? | | ???????#?#??????????????? ?????? | | ?????????##???#????????????????? | | ?#?????#??????????????? ? ?????? | | ???????#?#?#??#??#????#####????? | | ?????#???#????????#???# ????? | | ??????????????????? ?? ????? | | #########???????#?#?#?# ????? | | # T / #????########## #????? | | # !#?#??# # ##?#?? | | # #????# "# #????? | | # """ ###### ""# #????? | | # """ # ## """# #????? | | # """ + + # #?##?? | | # # ## ""# ###### | | # """gg# ## """# # | | # """ # ## ""# # | | # """ # ## # # """ | | # g @# #######+### + """ | | ?#####Y## # """ | | ?????##?# + | | ?#??????# # ! | | ????????## ########+###! "# | | ???##???## ##### = ### | | ???#???###! !!!#??# ### | | #??#???#?#!!!!!!#### +%% | | ??##?#?#?########### % =### | | ????#???????#?###?#" % # # | | ?#??##?#???#?#?##?## ### | | #?????###?????###??##== ### | | ???#?????#?????######= ## | | ????????????????##### ## | | ???????#?#?##???##?############ | | ??????????##??###?????###?#??##! | | ??#???????????###???##??####?## | | ??#?#############?###?######### | | ##???############?##?########## | | #?##?## ! ##?####?## ## | | ???#?## """ ###?###### | | ##???## "R" ####??#?## | | ???#?## ] " " ########## | | #?##?## #####??### ## | | ?#?#?##""" ########### ### | +----------------------------------------------------+ Best States ------------- Heat Dissipation 31 Energy Generation 14 Energy Capacity 265 Matter Stores 400 Matter Capacity 400 Sight Range 16 Terrain Scan Range 16 Terrain Scan Density 110 Cloak Strength 5 Armor Coverage 80 Melee Speed Boost 20 Evasion (%) 55 Armor Integrity Analysis 30 Recoil Reduction 2 Offensive Hacking 10 Item Schematics ----------------- None Robot Schematics ------------------ None Fabricated ------------ Nothing Alien Tech Used ----------------- None Achievements -------------- None Challenges ------------ None Game ------ Seed DefenseChainSpecial Manual? 0 Play Time 00:29:53 Cumulative 31.8 hours Start 2024.09.22 @ 11:33:48 End 2024.09.22 @ 12:00:46 Sessions 1 Manual Loads 0 Difficulty Rogue Special Mode None Game No. 61 Rogue 61 Adventurer 0 Explorer 0 Win Type - Total 0 Types 0/0/0/0/0/0/0/0/0 Lore% 13 Gallery% 32 Achievement% 23 Wizard Run 0 Options --------- Layout 0 ASCII 0 Keyboard 0 Movement Arrows Keybinds 0 Fullscreen 2 Font 24/Smallcaps Map View 56x25 Zoom Use 66% Tactical HUD 0 Map Filters NONE Filters NONE Steam 1 RUN: 9cefa938-ecae-4eac-bdf9-5d24a459b1fa